bitfinex-derivatives/quotes_BTCF0:USTF0_20250828
["timestamp","ask_amount","ask_price","bid_price","bid_amount"]
[1756362557531,0.57026002,113040.0,113030.0,0.64899459]
[1756362559129,0.15157203,113040.0,113030.0,0.64899459]
[1756362559431,0.57026002,113040.0,113030.0,0.64899459]
[1756362559833,0.15157203,113040.0,113030.0,0.64899459]
[1756362560027,0.57026002,113040.0,113030.0,0.64899459]
[1756362565031,0.15157203,113040.0,113030.0,0.64899459]
[1756362565236,0.57026002,113040.0,113030.0,0.64899459]
[1756362566536,0.15157203,113040.0,113030.0,0.64899459]
[1756362566731,0.57026002,113040.0,113030.0,0.64899459]
[1756362567136,0.15157203,113040.0,113030.0,0.64899459]
[1756362569031,0.002,113040.0,113030.0,1.06768258]
[1756362569238,0.01705,113040.0,113030.0,0.64899459]
[1756362569446,0.07116,113040.0,113030.0,1.0383066]
[1756362569638,0.14269,113040.0,113030.0,1.45699459]
[1756362571039,0.14269,113040.0,113030.0,0.64899459]
[1756362571240,0.14269,113040.0,113030.0,1.45699459]
[1756362571439,0.1517074,113040.0,113030.0,1.45699459]
[1756362572036,0.14269,113040.0,113030.0,1.45699459]
[1756362573037,0.002,113040.0,113030.0,1.45699459]
[1756362573435,0.002,113040.0,113030.0,0.64899459]
[1756362573640,0.002,113040.0,113030.0,1.45695459]
[1756362573842,0.07116,113040.0,113030.0,1.45695459]
[1756362574033,0.1229,113040.0,113030.0,1.45695459]
[1756362574234,0.14269,113040.0,113030.0,1.45695459]
[1756362574434,0.14169,113040.0,113030.0,1.45695459]
[1756362574730,0.14069,113040.0,113030.0,1.45695459]
[1756362575833,0.05673,113040.0,113030.0,1.45695459]
[1756362576034,0.01505,113040.0,113030.0,1.45695459]
[1756362579740,0.66037058,113050.0,113040.0,0.229909]
[1756362579940,0.66017058,113050.0,113040.0,0.64859699]
[1756362581144,0.66117058,113050.0,113040.0,0.64859699]
[1756362581443,0.66217058,113050.0,113040.0,0.64859699]
[1756362581838,0.24348259,113050.0,113040.0,0.64859699]
[1756362582045,0.04564182,113050.0,113040.0,0.64859699]
[1756362582246,0.02013844,113050.0,113040.0,1.07728498]
[1756362583246,0.02013844,113050.0,113040.0,1.32728498]
[1756362583446,0.002,113050.0,113040.0,1.32728498]
[1756362584042,0.002,113050.0,113040.0,1.63728498]
[1756362584643,0.002,113050.0,113040.0,2.44524498]
[1756362585338,0.0002,113060.0,113050.0,0.1444812]
[1756362585543,0.65934481,113070.0,113060.0,0.2298934]
[1756362585739,0.65914481,113070.0,113060.0,0.64858139]
[1756362586145,0.24045682,113070.0,113060.0,0.64858139]
[1756362586546,0.65914481,113070.0,113060.0,0.64858139]
[1756362586746,0.66314481,113070.0,113060.0,0.64858139]
[1756362588043,0.66414481,113070.0,113060.0,0.64858139]
[1756362589051,0.14108212,113070.0,113060.0,0.64858139]
[1756362589249,0.04827212,113070.0,113060.0,1.46646139]
[1756362590044,0.03169212,113070.0,113060.0,2.03646139]
[1756362591851,0.03169212,113070.0,113060.0,1.22858139]
[1756362592047,0.02303278,113070.0,113060.0,1.22858139]
[1756362592247,0.02303278,113070.0,113060.0,2.03646139]
[1756362592857,0.005,113070.0,113060.0,2.03646139]
[1756362593049,0.005,113070.0,113060.0,1.78646139]
[1756362594252,0.005,113070.0,113060.0,1.78642139]
[1756362594643,0.005,113070.0,113060.0,0.97858139]
[1756362594850,0.005,113070.0,113060.0,1.78738139]
[1756362595251,0.005,113070.0,113060.0,1.78734139]
[1756362595452,0.005,113070.0,113060.0,1.80729646]
[1756362595651,0.005,113070.0,113060.0,0.99853646]
[1756362595847,0.005,113070.0,113060.0,1.80721646]
[1756362596959,0.005,113070.0,113060.0,1.80781646]
[1756362597361,0.005,113070.0,113060.0,0.99853646]
[1756362597658,0.005,113070.0,113060.0,1.80781646]
[1756362597857,0.005,113070.0,113060.0,0.99853646]
[1756362598050,0.005,113070.0,113060.0,1.80809646]
[1756362598661,0.005,113070.0,113060.0,0.99853646]
[1756362598858,0.005,113070.0,113060.0,1.80801646]
[1756362599059,0.005,113070.0,113060.0,1.80763107]
[1756362599250,0.005,113070.0,113060.0,0.99815107]
[1756362599458,0.005,113070.0,113060.0,1.80763107]
[1756362599656,0.005,113070.0,113060.0,1.38894308]
[1756362599855,0.005,113070.0,113060.0,1.80759107]
[1756362600159,0.005,113070.0,113060.0,0.99815107]
[1756362600360,0.005,113070.0,113060.0,1.80747107]
[1756362601960,0.0002,113080.0,113070.0,0.1444655]
[1756362602163,0.51895415,113090.0,113080.0,0.2298777]
[1756362602461,0.55381415,113090.0,113080.0,1.48763879]
[1756362603157,0.10026616,113090.0,113080.0,1.48763879]
[1756362603358,0.51895415,113090.0,113080.0,1.48763879]
[1756362603560,0.55781415,113090.0,113080.0,1.48755879]
[1756362603955,0.10426616,113090.0,113080.0,1.48755879]
[1756362604260,0.10426616,113090.0,113080.0,1.81755879]
[1756362604261,0.004,113090.0,113080.0,1.81755879]
[1756362604459,0.09131,113130.0,113120.0,0.2298464]
[1756362604649,0.14425,113130.0,113120.0,0.64853439]
[1756362605254,0.14425,113130.0,113120.0,1.45809439]
[1756362605854,0.14425,113130.0,113120.0,1.0394064]
[1756362606063,0.56293799,113130.0,113120.0,0.64853439]
[1756362606364,0.12623331,113140.0,113130.0,0.2308885]
[1756362606565,0.15810331,113140.0,113130.0,1.06826448]
[1756362606765,0.15810331,113140.0,113130.0,0.64957649]
[1756362607161,0.10598331,113140.0,113130.0,1.06826448]
[1756362607467,0.03350331,113140.0,113130.0,1.41169558]
[1756362607661,0.01825331,113140.0,113130.0,1.41169558]
[1756362608266,0.01825331,113140.0,113130.0,0.60229558]
[1756362608463,0.01825331,113140.0,113130.0,1.41161558]
[1756362609365,0.01825331,113140.0,113130.0,1.0402085]
[1756362609563,0.01825331,113140.0,113130.0,1.0401285]
[1756362609762,0.03350331,113140.0,113130.0,1.41153558]
[1756362610264,0.03350331,113140.0,113130.0,0.60229558]
[1756362610464,0.78832993,113140.0,113130.0,0.16212158]
[1756362611062,0.77951039,113140.0,113130.0,0.16212158]
[1756362611558,0.77951039,113140.0,113130.0,0.10475158]
[1756362611764,0.77951039,113140.0,113130.0,0.25051008]
[1756362611765,0.15810331,113140.0,113130.0,0.25051008]
[1756362612469,0.16693348,113140.0,113130.0,0.25051008]
[1756362613262,0.19176095,113140.0,113130.0,0.62191716]
[1756362613465,0.16693348,113140.0,113130.0,0.62191716]
[1756362613665,0.19176386,113140.0,113130.0,0.62191716]
[1756362613864,0.19176386,113140.0,113130.0,0.25051008]
[1756362614269,0.18293369,113140.0,113130.0,0.25051008]
[1756362614464,0.15810331,113140.0,113130.0,0.25051008]
[1756362615267,0.12613331,113140.0,113130.0,0.62191716]
[1756362615470,0.07401331,113140.0,113130.0,0.62191716]
[1756362615968,0.15810331,113140.0,113130.0,0.62191716]
[1756362616165,0.01525,113140.0,113130.0,0.62191716]
[1756362616368,0.43237749,113150.0,113140.0,0.1735108]
[1756362616369,0.14870041,113150.0,113140.0,0.1735108]
[1756362616572,0.17342978,113150.0,113140.0,0.2308808]
[1756362617269,0.17342978,113150.0,113140.0,0.1425]
[1756362618275,0.54583686,113150.0,113140.0,0.1425]
[1756362619572,0.17442978,113150.0,113140.0,0.1425]
[1756362619875,0.54583686,113150.0,113140.0,0.1425]
[1756362620078,0.17442978,113150.0,113140.0,0.2308808]
[1756362623278,0.16567937,113150.0,113140.0,0.25083522]
[1756362623579,0.08158937,113150.0,113140.0,0.6222423]
[1756362623784,0.02582937,113150.0,113140.0,1.2422423]
[1756362624080,0.02582937,113150.0,113140.0,1.24189377]
[1756362624287,0.02582937,113150.0,113140.0,0.87048669]
[1756362624586,0.02582937,113150.0,113140.0,1.24189377]
[1756362624888,0.05779937,113150.0,113140.0,1.24189377]
[1756362625185,0.02582937,113150.0,113140.0,1.24189377]
[1756362625985,0.07794937,113150.0,113140.0,1.24189377]
[1756362626187,0.10991937,113150.0,113140.0,1.24189377]
[1756362627382,0.07794937,113150.0,113140.0,0.99189377]
[1756362627588,0.16567937,113150.0,113140.0,0.99189377]
[1756362628084,0.06309937,113150.0,113140.0,0.99189377]
[1756362628587,0.02582937,113150.0,113140.0,0.99189377]
[1756362628885,0.04107937,113150.0,113140.0,0.99189377]
[1756362629283,0.06309937,113150.0,113140.0,0.99189377]
[1756362629782,0.04107937,113150.0,113140.0,0.99189377]
[1756362629988,0.02582937,113150.0,113140.0,0.99189377]
[1756362630288,0.06309937,113150.0,113140.0,0.62048669]
[1756362630484,0.02582937,113150.0,113140.0,0.62048669]
[1756362630686,0.02582937,113150.0,113140.0,0.99189377]
[1756362631789,0.04107937,113150.0,113140.0,0.99189377]
[1756362632588,0.04107937,113150.0,113140.0,0.62189377]
[1756362632791,0.06309937,113150.0,113140.0,0.62189377]
[1756362633789,0.04107937,113150.0,113140.0,0.62189377]
[1756362633986,0.02582937,113150.0,113140.0,0.62189377]
[1756362634182,0.02482937,113150.0,113140.0,0.62189377]
[1756362634583,0.02482937,113150.0,113140.0,0.87189377]
[1756362634788,0.0002,113160.0,113150.0,0.2308729]
[1756362635094,0.14005,113170.0,113160.0,0.2337051]
[1756362635284,0.13985,113170.0,113160.0,0.60511218]
[1756362637594,0.18763966,113170.0,113160.0,0.60511218]
[1756362637793,0.18863966,113170.0,113160.0,0.60511218]
[1756362638189,0.19768517,113170.0,113160.0,0.60511218]
[1756362638385,0.14989551,113170.0,113160.0,0.60511218]
[1756362639498,0.15011551,113170.0,113160.0,0.60511218]
[1756362640198,0.15011551,113170.0,113160.0,0.2337051]
[1756362640799,0.15011551,113170.0,113160.0,0.14534]
[1756362641101,0.14072,113160.0,113150.0,0.2338107]
[1756362641293,0.14072,113160.0,113150.0,0.2437107]
[1756362642099,0.53035184,113160.0,113150.0,0.15534]
[1756362642301,0.53035184,113160.0,113150.0,0.2437129]
[1756362642497,0.53035184,113160.0,113150.0,0.15534]
[1756362643400,0.53035184,113160.0,113150.0,0.2437129]
[1756362643894,0.15894476,113160.0,113150.0,0.2437129]
[1756362644202,0.53035184,113160.0,113150.0,0.2437129]
[1756362645406,0.12717476,113160.0,113150.0,0.61511998]
[1756362645591,0.05602476,113160.0,113150.0,0.98511998]
[1756362645797,0.0378,113160.0,113150.0,0.98511998]
[1756362646703,0.06220048,113160.0,113150.0,0.60511998]
[1756362646905,0.04039048,113160.0,113150.0,0.60511998]
[1756362647405,0.02440048,113160.0,113150.0,0.60511998]
[1756362647604,0.02440048,113160.0,113150.0,0.61511998]
[1756362650206,0.02440048,113160.0,113150.0,0.86511998]
[1756362651104,0.0378,113190.0,113180.0,0.2336891]
[1756362651408,0.12191,113190.0,113180.0,1.42837618]
[1756362651707,0.12191,113190.0,113180.0,1.0569691]
[1756362651901,0.12191,113190.0,113180.0,0.2436891]
[1756362652105,0.14072,113190.0,113180.0,0.2436891]
[1756362652500,0.14072,113190.0,113180.0,0.61509618]
[1756362652997,0.14172,113190.0,113180.0,0.61509618]
[1756362653403,0.08938,113190.0,113180.0,0.61509618]
[1756362654006,0.0388,113190.0,113180.0,0.61509618]
[1756362654200,0.14172,113190.0,113180.0,0.61509618]
[1756362654404,0.07057,113190.0,113180.0,0.61509618]
[1756362654910,0.14172,113190.0,113180.0,0.61509618]
[1756362655406,0.15985627,113190.0,113180.0,0.12045]
[1756362655611,0.78126335,113190.0,113180.0,0.09694]
[1756362656011,0.78126335,113190.0,113180.0,0.13183]
[1756362656311,0.78126335,113190.0,113180.0,0.12045]
[1756362656614,0.78126335,113190.0,113180.0,0.09694]
[1756362657306,0.06149,113150.0,113140.0,0.10027589]
[1756362657509,0.53003825,113150.0,113140.0,0.08031589]
[1756362657705,0.53003825,113150.0,113140.0,0.03476589]
[1756362657903,0.08526,113140.0,113130.0,0.0956]
[1756362658115,0.08526,113140.0,113130.0,0.57535528]
[1756362658116,0.02865,113140.0,113130.0,0.57535528]
[1756362658310,0.11703,113140.0,113130.0,0.2039482]
[1756362658511,0.14072,113140.0,113130.0,0.11556]
[1756362659304,0.14072,113140.0,113130.0,0.12256]
[1756362659509,0.14948711,113140.0,113130.0,0.12256]
[1756362660115,0.14072,113140.0,113130.0,0.2109473]
[1756362660509,0.1493914,113140.0,113130.0,0.2109473]
[1756362660710,0.1493914,113140.0,113130.0,0.12256]
[1756362660905,0.52079848,113140.0,113130.0,0.06771]
[1756362661219,0.77079848,113140.0,113130.0,0.02216]
[1756362661417,0.3993914,113140.0,113130.0,0.0442]
[1756362661721,0.3993914,113140.0,113130.0,0.1026]
[1756362662119,0.3993914,113140.0,113130.0,0.12256]
[1756362662410,0.77079848,113140.0,113130.0,0.1026]
[1756362662810,0.77079848,113140.0,113130.0,0.07909]
[1756362663417,0.77079848,113140.0,113130.0,0.0442]
[1756362663714,1.59243848,113140.0,113130.0,0.0442]
[1756362664516,1.59243848,113140.0,113130.0,0.02216]
[1756362664712,0.77079848,113140.0,113130.0,0.02216]
[1756362664912,1.59223848,113140.0,113130.0,0.02216]
[1756362666519,1.59223848,113140.0,113130.0,0.007]
[1756362667024,1.59283848,113140.0,113120.0,0.0001]
[1756362667230,0.14267,113120.0,113110.0,0.09432]
[1756362667525,0.14267,113120.0,113110.0,0.09422]
[1756362668822,0.14267,113120.0,113110.0,0.09622]
[1756362669723,0.14267,113120.0,113110.0,0.10122]
[1756362670022,0.14267,113120.0,113110.0,0.11961]
[1756362670219,0.08594,113120.0,113110.0,0.84962008]
[1756362670419,0.11858,113120.0,113110.0,0.84962008]
[1756362670724,0.14267,113120.0,113110.0,0.38981]
[1756362670923,0.14267,113120.0,113110.0,0.76121708]
[1756362671523,0.14267,113120.0,113110.0,0.84962008]
[1756362671822,0.14267,113120.0,113110.0,0.76121708]
[1756362672022,0.14267,113120.0,113110.0,0.84962008]
[1756362672424,0.14267,113120.0,113110.0,0.76121708]
[1756362673720,0.14267,113120.0,113110.0,0.38981]
[1756362673929,0.11858,113120.0,113110.0,0.84962008]
[1756362674427,0.14267,113120.0,113110.0,0.84962008]
[1756362674724,0.14267,113120.0,113110.0,0.76121708]
[1756362675129,0.14267,113120.0,113110.0,0.36961]
[1756362675422,0.51407708,113120.0,113110.0,0.02307]
[1756362675925,0.51407708,113120.0,113110.0,0.007]
[1756362677120,0.76407708,113120.0,113110.0,0.007]
[1756362678524,0.76407708,113120.0,113110.0,0.005]
[1756362678726,0.0855,113110.0,113100.0,0.09432]
[1756362678938,1.33699708,113110.0,113100.0,0.09422]
[1756362680030,1.33699708,113110.0,113100.0,0.09622]
[1756362680429,1.33699708,113110.0,113100.0,0.0634]
[1756362680630,1.33699708,113110.0,113100.0,0.01807]
[1756362681327,1.33699708,113110.0,113100.0,0.04061]
[1756362681529,1.33699708,113110.0,113100.0,0.09622]
[1756362681728,1.33699708,113110.0,113100.0,0.04061]
[1756362682529,1.33699708,113110.0,113100.0,0.002]
[1756362682726,1.33699708,113110.0,113100.0,0.01807]
[1756362683428,1.35460267,113110.0,113100.0,0.002]
[1756362683637,1.60460267,113110.0,113100.0,0.002]
[1756362684134,1.60460267,113110.0,113090.0,0.0001]
[1756362684431,0.14267,113090.0,113080.0,0.09432]
[1756362684628,1.33623708,113090.0,113080.0,0.09422]
[1756362684829,1.33623708,113090.0,113080.0,0.01607]
[1756362685730,1.40617083,113090.0,113080.0,0.07543]
[1756362685926,1.40617083,113090.0,113080.0,0.04261]
[1756362686329,1.40617083,113090.0,113080.0,0.01807]
[1756362687629,1.40617083,113090.0,113080.0,0.002]
[1756362688333,1.42997377,113090.0,113080.0,0.002]
[1756362688632,1.40617083,113090.0,113080.0,0.002]
[1756362688834,1.67997377,113090.0,113080.0,0.002]
[1756362694036,0.60781377,113090.0,113080.0,0.04061]
[1756362694246,1.42877377,113090.0,113080.0,0.09622]
[1756362694732,2.92877377,113090.0,113080.0,0.09622]
[1756362695429,2.92877377,113090.0,113080.0,0.07343]
[1756362696129,2.92877377,113090.0,113080.0,0.04061]
[1756362696337,2.92877377,113090.0,113080.0,0.01807]
[1756362696639,1.42877377,113090.0,113080.0,0.01807]
[1756362696940,2.92877377,113090.0,113080.0,0.002]
[1756362697140,2.92909377,113090.0,113080.0,0.002]
[1756362700140,2.92909377,113090.0,113080.0,0.01746]
[1756362700340,2.92909377,113090.0,113080.0,0.002]
[1756362702142,2.94690397,113090.0,113080.0,0.002]
[1756362705646,2.92909377,113090.0,113080.0,0.002]
[1756362705837,2.94693843,113090.0,113080.0,0.002]
[1756362706743,2.57553135,113090.0,113080.0,0.002]
[1756362706942,2.94637843,113090.0,113080.0,0.002]
[1756362707134,2.99416809,113090.0,113080.0,0.002]
[1756362711747,2.94637843,113090.0,113080.0,0.002]
[1756362713143,2.99416809,113090.0,113080.0,0.002]
[1756362713444,2.94637843,113090.0,113080.0,0.002]
[1756362713849,2.12565843,113090.0,113080.0,0.002]
[1756362714049,2.94537843,113090.0,113080.0,0.002]
[1756362714443,2.12565843,113090.0,113080.0,0.002]
[1756362714649,1.75425135,113090.0,113080.0,0.09549]
[1756362714850,0.1516776,113090.0,113080.0,0.84661368]
[1756362715037,0.0416476,113090.0,113080.0,0.84661368]
[1756362716647,0.07043448,113090.0,113080.0,0.84661368]
[1756362717039,0.04701466,113090.0,113080.0,0.84461368]
[1756362717240,0.04701466,113090.0,113080.0,0.84761368]
[1756362717444,0.04701466,113090.0,113080.0,0.84861368]
[1756362717750,0.04701466,113090.0,113080.0,0.84561368]
[1756362717949,0.04701466,113090.0,113080.0,0.84761368]
[1756362718448,0.01784466,113090.0,113080.0,0.84761368]
[1756362718649,0.01784466,113090.0,113080.0,1.21902076]
[1756362718948,0.01784466,113090.0,113080.0,0.84761368]
[1756362720554,0.0002,113100.0,113090.0,0.2231988]
[1756362720748,0.02937,113110.0,113100.0,0.223191]
[1756362720948,0.02917,113110.0,113100.0,0.59459808]
[1756362721755,0.05119,113110.0,113100.0,0.59459808]
[1756362721951,0.08568,113110.0,113100.0,0.59459808]
[1756362722147,0.11896,113110.0,113100.0,0.59459808]
[1756362722342,0.08568,113110.0,113100.0,0.59459808]
[1756362722653,0.07019,113110.0,113100.0,0.59459808]
[1756362722949,0.03117,113110.0,113100.0,0.61441561]
[1756362723251,0.03117,113110.0,113100.0,0.86441561]
[1756362723454,0.002,113110.0,113100.0,0.86441561]
[1756362723658,0.001,113110.0,113100.0,0.86441561]
[1756362723957,0.04761578,113120.0,113110.0,0.1296932]
[1756362724154,0.04741578,113120.0,113110.0,0.59459028]
[1756362726951,0.01824578,113120.0,113110.0,0.59559028]
[1756362727257,0.01824578,113120.0,113110.0,0.59659028]
[1756362727857,0.04566578,113120.0,113110.0,0.59659028]
[1756362729259,0.01824578,113120.0,113110.0,0.59659028]
[1756362729455,0.02762,113130.0,113120.0,0.0883944]
[1756362729661,0.02742,113130.0,113120.0,0.55472148]
[1756362730457,0.02742,113130.0,113120.0,0.57416992]
[1756362730659,0.05943823,113140.0,113130.0,0.1833065]
[1756362730859,0.03618823,113140.0,113130.0,0.59509358]
[1756362731057,0.02742,113140.0,113130.0,0.59509358]
[1756362731762,0.13440643,113150.0,113140.0,0.2236787]
[1756362732060,0.13420643,113150.0,113140.0,0.61502355]
[1756362732260,0.15725643,113150.0,113140.0,0.61502355]
[1756362733572,0.08668643,113150.0,113140.0,0.61502355]
[1756362733763,0.04541643,113150.0,113140.0,0.61502355]
[1756362736365,0.04541643,113150.0,113140.0,0.61602355]
[1756362736870,0.04541643,113150.0,113140.0,0.61702355]
[1756362738467,0.10226643,113150.0,113140.0,0.61702355]
[1756362738665,0.13420643,113150.0,113140.0,0.61702355]
[1756362739264,0.15725643,113150.0,113140.0,0.61702355]
[1756362739563,0.13420643,113150.0,113140.0,0.61702355]
[1756362740366,0.15725643,113150.0,113140.0,0.24561647]
[1756362740568,0.15725643,113150.0,113140.0,0.61702355]
[1756362740768,0.13420643,113150.0,113140.0,0.61702355]
[1756362741769,0.15725643,113150.0,113140.0,0.61702355]
[1756362741967,0.12531643,113150.0,113140.0,0.52864485]
[1756362742164,0.77866351,113150.0,113140.0,0.22341667]
[1756362742359,0.77866351,113150.0,113140.0,0.06357]
[1756362742570,0.77866351,113150.0,113140.0,0.01752]
[1756362742871,0.77866351,113150.0,113140.0,0.09539]
[1756362744171,1.59718351,113150.0,113140.0,0.09539]
[1756362744372,1.59718351,113150.0,113140.0,0.01752]
[1756362744773,1.59718351,113150.0,113140.0,0.03694801]
[1756362745374,1.59718351,113150.0,113140.0,0.02142801]
[1756362746476,1.62032294,113150.0,113140.0,0.02142801]
[1756362747275,0.80180294,113150.0,113140.0,0.02142801]
[1756362747584,1.61984294,113150.0,113140.0,0.02142801]
[1756362748172,1.61984294,113150.0,113140.0,0.03694801]
[1756362748471,1.61984294,113150.0,113140.0,0.20319691]
[1756362749368,0.80180294,113150.0,113140.0,0.05813801]
[1756362749677,1.61968294,113150.0,113140.0,0.05813801]
[1756362749877,1.61968294,113150.0,113140.0,0.14651691]
[1756362750077,1.61968294,113150.0,113140.0,0.20319691]
[1756362750574,0.43039586,113150.0,113140.0,0.22290691]
[1756362750779,1.61964294,113150.0,113140.0,0.22290691]
[1756362751783,1.61964294,113150.0,113140.0,0.20319691]
[1756362753084,1.61964294,113150.0,113140.0,0.11481801]
[1756362753282,1.61964294,113150.0,113140.0,0.02142801]
[1756362753588,1.61964294,113150.0,113130.0,0.0001]
[1756362753780,0.13926,113130.0,113120.0,0.01954844]
[1756362754086,1.37034308,113130.0,113120.0,0.01944844]
[1756362755477,0.998936,113130.0,113120.0,0.01944844]
[1756362755674,1.37034308,113130.0,113120.0,0.01944844]
[1756362756076,1.37026308,113130.0,113120.0,0.01944844]
[1756362756676,1.37026308,113130.0,113110.0,0.0001]
[1756362756880,0.14177,113110.0,113100.0,0.22237323]
[1756362757085,0.14177,113110.0,113100.0,0.22227323]
[1756362757285,0.95997,113110.0,113100.0,0.13386753]
[1756362757486,0.95997,113110.0,113100.0,0.22227783]
[1756362758086,0.16493,113110.0,113100.0,0.22227783]
[1756362758283,0.95993,113110.0,113100.0,0.59368491]
[1756362758586,0.14177,113110.0,113100.0,0.59368491]
[1756362758781,0.14177,113110.0,113100.0,0.59568491]
[1756362759088,0.14177,113110.0,113100.0,0.59768491]
[1756362760184,0.14177,113110.0,113100.0,0.22627783]
[1756362760386,0.15062006,113110.0,113100.0,0.25047783]
[1756362760591,0.06751,113110.0,113100.0,0.62188491]
[1756362760790,0.08353,113110.0,113100.0,0.62188491]
[1756362760990,0.14177,113110.0,113100.0,0.62188491]
[1756362762292,0.08353,113110.0,113100.0,0.62188491]
[1756362762792,0.11779,113110.0,113100.0,0.62188491]
[1756362763581,0.14177,113110.0,113100.0,0.62188491]
[1756362763991,0.11779,113110.0,113100.0,0.62188491]
[1756362765399,0.14177,113110.0,113100.0,0.62188491]
[1756362766187,0.06751,113110.0,113100.0,0.62188491]
[1756362766389,0.0274,113110.0,113100.0,0.62188491]
[1756362766584,0.049,113110.0,113100.0,0.62188491]
[1756362767690,0.08353,113110.0,113100.0,0.62188491]
[1756362767992,0.06751,113110.0,113100.0,0.62188491]
[1756362769494,0.11779,113110.0,113100.0,0.25047783]
[1756362769792,0.11779,113110.0,113100.0,0.62188491]
[1756362771196,0.14177,113110.0,113100.0,0.62188491]
[1756362771598,0.11779,113110.0,113100.0,0.62188491]
[1756362772798,0.14177,113110.0,113100.0,0.62188491]
[1756362773292,0.08353,113110.0,113100.0,0.25047783]
[1756362773500,0.14177,113110.0,113100.0,0.25047783]
[1756362773799,0.14177,113110.0,113100.0,0.62188491]
[1756362775800,0.11779,113110.0,113100.0,0.62188491]
[1756362778100,0.14177,113110.0,113100.0,0.25047783]
[1756362778299,0.14177,113110.0,113100.0,0.62188491]
[1756362778499,0.11779,113110.0,113100.0,0.62188491]
[1756362778801,0.14177,113110.0,113100.0,0.62188491]
[1756362779905,0.10751,113110.0,113100.0,0.62188491]
[1756362780206,0.14177,113110.0,113100.0,0.62188481]
[1756362780404,0.14177,113110.0,113100.0,0.25047773]
[1756362780611,0.14177,113110.0,113100.0,0.62188481]
[1756362781411,0.14177,113110.0,113100.0,0.56361481]
[1756362781611,0.14177,113110.0,113100.0,0.59768481]
[1756362782213,0.14177,113110.0,113100.0,0.62188481]
[1756362782603,0.14177,113110.0,113100.0,0.25047773]
[1756362782807,0.14177,113110.0,113100.0,0.62188481]
[1756362784909,0.11779,113110.0,113100.0,0.62188481]
[1756362785918,0.14169,113110.0,113100.0,0.62188481]
[1756362786917,0.11779,113110.0,113100.0,0.62188481]
[1756362787415,0.14169,113110.0,113100.0,0.62188481]
[1756362790015,0.14169,113110.0,113100.0,0.62148825]
[1756362791617,0.14169,113110.0,113100.0,0.70073276]
[1756362792421,0.14169,113110.0,113100.0,0.62148825]
[1756362792616,0.14169,113110.0,113100.0,0.70073276]
[1756362792809,0.14169,113110.0,113100.0,0.32932568]
[1756362793005,0.0497,113110.0,113100.0,0.62148825]
[1756362793305,0.14346,113110.0,113100.0,0.62148825]
[1756362793708,0.14346,113110.0,113100.0,0.62186743]
[1756362795318,0.14346,113110.0,113100.0,0.16205015]
[1756362795510,0.51486708,113110.0,113100.0,0.11609]
[1756362795710,1.33386708,113110.0,113100.0,0.09615]
[1756362796110,1.40372481,113110.0,113100.0,0.09615]
[1756362796314,0.21331773,113110.0,113100.0,0.11588]
[1756362796509,0.58472481,113110.0,113100.0,0.11588]
[1756362797217,0.21331773,113110.0,113100.0,0.2042902]
[1756362797914,0.58472481,113110.0,113100.0,0.2042902]
[1756362798114,0.21331773,113110.0,113100.0,0.2042902]
[1756362799018,0.21331773,113110.0,113100.0,0.11588]
[1756362799214,0.58472481,113110.0,113100.0,0.06404]
[1756362799518,0.58472481,113110.0,113100.0,0.09615]
[1756362801920,0.58472481,113110.0,113100.0,0.06404]
[1756362802221,0.54455481,113110.0,113100.0,0.02505]
[1756362803324,1.36475481,113110.0,113100.0,0.02505]
[1756362803719,1.36475481,113110.0,113090.0,0.0001]
[1756362803720,1.63792631,113110.0,113090.0,0.0001]
[1756362804022,1.63792631,113110.0,113080.0,0.07924451]
[1756362804023,0.10436,113090.0,113080.0,0.05546]
[1756362804222,1.29592708,113090.0,113080.0,0.05536]
[1756362806724,1.29592708,113090.0,113080.0,0.05636]
[1756362807026,1.29592708,113090.0,113080.0,0.02425]
[1756362807230,1.29552708,113090.0,113080.0,0.02425]
[1756362807821,1.29552708,113090.0,113080.0,0.001]
[1756362809721,1.54552708,113090.0,113080.0,0.001]
[1756362810625,1.54552708,113090.0,113070.0,0.0001]
[1756362810823,0.43432708,113080.0,113060.0,0.10859012]
[1756362811021,0.92368,113070.0,113060.0,0.25385012]
[1756362811226,0.92368,113070.0,113060.0,0.27358012]
[1756362811937,0.92368,113070.0,113060.0,0.30278012]
[1756362812118,0.92368,113070.0,113060.0,0.27758012]
[1756362812419,0.92368,113070.0,113060.0,0.27358012]
[1756362812623,0.92368,113070.0,113060.0,0.27758012]
[1756362814028,0.92368,113070.0,113060.0,0.28058012]
[1756362814232,0.92368,113070.0,113060.0,0.15236]
[1756362814525,1.29508708,113070.0,113060.0,0.02725]
[1756362814831,1.23216708,113070.0,113060.0,0.001]
[1756362815029,1.33359708,113070.0,113060.0,0.001]
[1756362815429,0.51427708,113070.0,113060.0,0.001]
[1756362815632,1.33367708,113070.0,113060.0,0.01686]
[1756362817032,1.34239255,113070.0,113060.0,0.01686]
[1756362818026,1.34179255,113070.0,113060.0,0.09956]
[1756362818729,0.97038547,113070.0,113060.0,0.09956]
[1756362819231,1.34179255,113070.0,113060.0,0.09956]
[1756362819933,1.34163255,113070.0,113060.0,0.1880015]
[1756362823333,0.52299255,113070.0,113060.0,0.1880015]
[1756362823631,1.34103255,113070.0,113060.0,0.1880015]
[1756362824022,0.15158547,113070.0,113060.0,0.2064315]
[1756362824223,1.34095255,113070.0,113060.0,0.2064315]
[1756362824834,1.34095255,113070.0,113060.0,0.03999]
[1756362825333,1.34107255,113070.0,113060.0,0.1880015]
[1756362825533,0.96966547,113070.0,113060.0,0.1880015]
[1756362825735,1.34107255,113070.0,113060.0,0.1880015]
[1756362829036,1.34099255,113070.0,113060.0,0.1880015]
[1756362833637,1.34099255,113070.0,113060.0,0.1284315]
[1756362833838,1.34099255,113070.0,113060.0,0.03999]
[1756362834238,1.34099255,113070.0,113060.0,0.09956]
[1756362835138,1.34099255,113070.0,113060.0,0.03999]
[1756362836733,1.34099255,113070.0,113060.0,0.02413]
[1756362836939,1.34099255,113070.0,113060.0,0.001]
[1756362837238,1.34099255,113070.0,113060.0,0.01686]
[1756362839144,1.34099255,113070.0,113060.0,0.001]
[1756362839645,1.80662465,113070.0,113060.0,0.001]
[1756362839846,1.80662465,113070.0,113060.0,0.01686]
[1756362841148,1.82986765,113070.0,113060.0,0.01686]
[1756362841348,1.41134806,113070.0,113060.0,0.01686]
[1756362841544,1.82986765,113070.0,113060.0,0.001]
[1756362841745,2.07986765,113070.0,113050.0,0.0001]
[1756362841946,0.14239,113050.0,113040.0,0.22630597]
[1756362842149,1.37762959,113050.0,113040.0,0.28577597]